[Event "Fast Chess"]
[Site "ChessKid.com"]
[Date "2020.04.23"]
[Round "1"]
[White "Li, Tobias"]
[Black "Halimi, Dorian"]
[Result "1/2-1/2"]
[ECO "C42"]
[WhiteElo "1354"]
[BlackElo "1112"]
[Annotator "Fesselung; Figur fangen"]
[PlyCount "108"]
[EventDate "2020.??.??"]
[TimeControl "600"]
[WhiteClock "0:06:47"]
[BlackClock "0:06:39"]

1. e4 {[%emt 0:00:02]} e5 {[%emt 0:00:02]} 2. Nf3 {[%emt 0:00:06]} Nf6 {
[%emt 0:00:03]} 3. Nxe5 {[%emt 0:00:03]} Nxe4 {[%emt 0:00:04]} 4. Qe2 {[%emt 0:
00:02]} d5 {[%emt 0:00:08]} 5. c4 {[%emt 0:00:05]} Bd6 {[%emt 0:00:10]} 6. cxd5
{[%emt 0:00:04]} Bxe5 {[%emt 0:00:02]} 7. Qxe4 {[%emt 0:00:00]} Qe7 {[%emt 0:
00:06]} 8. d4 $4 {[%emt 0:00:07]} f5 $4 {[%emt 0:00:11]} 9. Qxe5 {[%emt 0:00:
04]} Qxe5+ {[%emt 0:00:04]} 10. dxe5 {[%emt 0:00:01]} O-O {[%emt 0:00:08]} 11.
Nc3 {[%emt 0:00:03]} Na6 {[%emt 0:00:04]} 12. Be2 {[%emt 0:00:05]} Re8 {
[%emt 0:00:02]} 13. Bf4 {[%emt 0:00:02]} Nb4 {[%emt 0:00:05]} 14. O-O {[%emt 0:
00:05]} Nc2 {[%emt 0:00:04]} 15. Rac1 {[%emt 0:00:00]} Nd4 {[%emt 0:00:02]} 16.
Rfe1 {[%emt 0:00:15]} Bd7 {[%emt 0:00:05]} 17. Red1 {[%emt 0:00:08]} c5 {
[%emt 0:00:06]} 18. Be3 {[%emt 0:00:18]} Ba4 {[%emt 0:00:09]} 19. Nxa4 {
[%emt 0:00:07]} Nxe2+ {[%emt 0:00:03]} 20. Kf1 {[%emt 0:00:06]} Nxc1 {[%emt 0:
00:01]} 21. Rxc1 {[%emt 0:00:01]} Rxe5 {[%emt 0:00:02]} 22. Nxc5 {[%emt 0:00:
07]} Rc8 {[%emt 0:00:04]} 23. Nd7 {[%emt 0:00:13]} Rxc1+ {[%emt 0:00:04]} 24.
Bxc1 {[%emt 0:00:03]} Rxd5 {[%emt 0:00:01]} 25. Nb8 {[%emt 0:00:13]} Rd1+ {
[%emt 0:00:03]} 26. Ke2 {[%emt 0:00:04]} Rxc1 {[%emt 0:00:02]} 27. Kd2 {
[%emt 0:00:01]} Rc8 {[%emt 0:00:03]} (27... Rc7) 28. Nd7 {[%emt 0:00:03]} Rd8 {
[%emt 0:00:04]} 29. Kc3 {[%emt 0:00:05]} Rxd7 {[%emt 0:00:01]} 30. Kc4 {
[%emt 0:00:01]} Kf7 {[%emt 0:00:03]} 31. Kc3 {[%emt 0:00:03]} Ke6 {[%emt 0:00:
01]} 32. b4 {[%emt 0:00:05]} h5 {[%emt 0:00:04]} 33. a4 {[%emt 0:00:01]} g5 {
[%emt 0:00:01]} 34. f3 {[%emt 0:00:03]} Rc7+ {[%emt 0:00:02]} 35. Kb3 {[%emt 0:
00:02]} Kd5 {[%emt 0:00:02]} 36. g4 {[%emt 0:00:01]} fxg4 {[%emt 0:00:06]} 37.
fxg4 {[%emt 0:00:02]} hxg4 {[%emt 0:00:02]} 38. b5 {[%emt 0:00:03]} Kd4 {
[%emt 0:00:05]} 39. Kb4 {[%emt 0:00:02]} Rc4+ {[%emt 0:00:02]} 40. Ka5 {
[%emt 0:00:01]} b6+ {[%emt 0:00:03]} 41. Ka6 {[%emt 0:00:01]} Rc7 {[%emt 0:00:
06]} 42. a5 {[%emt 0:00:03]} bxa5 {[%emt 0:00:04]} 43. Kxa5 {[%emt 0:00:01]}
Kc4 {[%emt 0:00:02]} 44. Ka6 {[%emt 0:00:03]} Rc5 {[%emt 0:00:06]} 45. b6 {
[%emt 0:00:05]} axb6 {[%emt 0:00:02]} 46. Kxb6 {[%emt 0:00:00]} Rb5+ {[%emt 0:
00:01]} 47. Kc6 {[%emt 0:00:01]} Rc5+ {[%emt 0:00:02]} 48. Kd6 {[%emt 0:00:01]}
Ra5 {[%emt 0:00:03]} 49. Ke6 {[%emt 0:00:01]} Kd3 {[%emt 0:00:02]} 50. Kf6 {
[%emt 0:00:01]} Ke3 {[%emt 0:00:01]} 51. Kg6 {[%emt 0:00:03]} Kf3 {[%emt 0:00:
03]} 52. Kh5 {[%emt 0:00:00]} Kg2 {[%emt 0:00:03]} 53. h4 {[%emt 0:00:02]}
gxh4+ {[%emt 0:00:04]} 54. Kxh4 {[%emt 0:00:01]} Kf3 {[%emt 0:00:02] Game
drawn by stalemate} 1/2-1/2

[Event "Fast Chess"]
[Site "ChessKid.com"]
[Date "2020.04.23"]
[Round "1"]
[White "Li, Patrick"]
[Black "Dai, Lana"]
[Result "0-1"]
[ECO "C55"]
[WhiteElo "1096"]
[BlackElo "1275"]
[Annotator "Abzug; einzügiger Einsteller"]
[PlyCount "34"]
[EventDate "2020.??.??"]
[TimeControl "600"]
[WhiteClock "0:08:28"]
[BlackClock "0:07:33"]

1. e4 {[%emt 0:00:04]} e5 {[%emt 0:00:02]} 2. Nf3 {[%emt 0:00:01]} Nc6 {
[%emt 0:00:01]} 3. Nc3 {[%emt 0:00:03]} Nf6 {[%emt 0:00:01]} 4. Bc4 {[%emt 0:
00:03]} h6 {[%emt 0:00:02]} 5. O-O {[%emt 0:00:00]} a6 {[%emt 0:00:03]} 6. h3 {
[%emt 0:00:04]} b5 {[%emt 0:00:02]} 7. Bb3 {[%emt 0:00:11]} b4 {[%emt 0:00:01]}
8. Nd5 {[%emt 0:00:07]} Nxd5 {[%emt 0:00:03]} 9. Bxd5 {[%emt 0:00:03]} Bc5 {
[%emt 0:00:06]} 10. Nh2 {[%emt 0:00:21]} O-O {[%emt 0:00:03]} 11. Qg4 {[%emt 0:
00:13]} d6 {[%emt 0:00:18]} 12. d4 {[%emt 0:00:10]} Bxg4 {[%emt 0:00:03]} 13.
Nxg4 {[%emt 0:00:07]} exd4 {[%emt 0:00:12]} 14. Bxc6 {[%emt 0:00:18]} Rb8 {
[%emt 0:00:06]} 15. Bd5 {[%emt 0:00:15]} Qe7 {[%emt 0:00:08]} 16. Bc6 {[%emt 0:
00:18]} Rb6 {[%emt 0:00:05]} 17. Bd5 {[%emt 0:00:11]} h5 {[%emt 0:00:16]
TopBrownCave won by resignation} 0-1

[Event "Fast Chess"]
[Site "ChessKid.com"]
[Date "2020.04.23"]
[Round "2"]
[White "Dai, Lana"]
[Black "Li, Tobias"]
[Result "0-1"]
[ECO "C50"]
[WhiteElo "1269"]
[BlackElo "1361"]
[PlyCount "126"]
[EventDate "2020.??.??"]
[TimeControl "600"]
[WhiteClock "0:06:32"]
[BlackClock "0:05:42"]

1. e4 {[%emt 0:00:02]} e5 {[%emt 0:00:06]} 2. Nf3 {[%emt 0:00:01]} Nc6 {
[%emt 0:00:02]} 3. Nc3 {[%emt 0:00:01]} Nf6 {[%emt 0:00:04]} 4. Bc4 {[%emt 0:
00:02]} Bc5 {[%emt 0:00:01]} 5. h3 {[%emt 0:00:05]} O-O {[%emt 0:00:01]} 6. a3
{[%emt 0:00:01]} a6 {[%emt 0:00:03]} 7. d3 {[%emt 0:00:04]} h6 {[%emt 0:00:02]}
8. O-O {[%emt 0:00:02]} d6 {[%emt 0:00:01]} 9. Nd5 {[%emt 0:00:09]} Be6 {
[%emt 0:00:10]} 10. Nxf6+ {[%emt 0:00:08]} Qxf6 {[%emt 0:00:03]} 11. Bxe6 {
[%emt 0:00:01]} Qxe6 {[%emt 0:00:03]} 12. b4 {[%emt 0:00:14]} Bb6 {[%emt 0:00:
03]} 13. a4 {[%emt 0:00:05]} Nd4 {[%emt 0:00:10]} 14. Nxd4 {[%emt 0:00:07]}
Bxd4 {[%emt 0:00:01]} 15. Ra3 {[%emt 0:00:07]} b5 {[%emt 0:00:27]} 16. axb5 {
[%emt 0:00:02]} axb5 {[%emt 0:00:01]} 17. Rxa8 {[%emt 0:00:03]} Rxa8 {[%emt 0:
00:01]} 18. Qf3 {[%emt 0:00:11]} Ra1 {[%emt 0:00:06]} 19. Qg3 {[%emt 0:00:03]}
Bc3 {[%emt 0:00:12]} 20. Be3 {[%emt 0:00:30]} Rxf1+ {[%emt 0:00:10]} 21. Kxf1 {
[%emt 0:00:02]} Bxb4 {[%emt 0:00:01]} 22. d4 {[%emt 0:00:04]} exd4 {[%emt 0:00:
04]} 23. Bxd4 {[%emt 0:00:01]} Qg6 {[%emt 0:00:13]} 24. Qxg6 {[%emt 0:00:04]}
fxg6 {[%emt 0:00:02]} 25. c3 {[%emt 0:00:02]} Ba5 {[%emt 0:00:02]} 26. f4 {
[%emt 0:00:03]} b4 {[%emt 0:00:03]} 27. cxb4 {[%emt 0:00:01]} Bxb4 {[%emt 0:00:
02]} 28. e5 {[%emt 0:00:03]} dxe5 {[%emt 0:00:02]} 29. fxe5 {[%emt 0:00:01]}
Kf7 {[%emt 0:00:05]} 30. g4 {[%emt 0:00:06]} Ke6 {[%emt 0:00:01]} 31. Kf2 {
[%emt 0:00:04]} Bd2 {[%emt 0:00:02]} 32. Ke2 {[%emt 0:00:05]} Bf4 {[%emt 0:00:
03]} 33. Kf3 {[%emt 0:00:12]} Bxe5 {[%emt 0:00:03]} 34. Bxe5 {[%emt 0:00:00]}
Kxe5 {[%emt 0:00:01]} 35. Kg3 {[%emt 0:00:02]} c5 {[%emt 0:00:02]} 36. Kf2 {
[%emt 0:00:03]} c4 {[%emt 0:00:01]} 37. Ke2 {[%emt 0:00:01]} Ke4 {[%emt 0:00:
02]} 38. Kd2 {[%emt 0:00:03]} Kd4 {[%emt 0:00:00]} 39. Kc2 {[%emt 0:00:03]} c3
{[%emt 0:00:01]} 40. Kd1 {[%emt 0:00:04]} Kd3 {[%emt 0:00:03]} 41. h4 {[%emt 0:
00:08]} g5 {[%emt 0:00:04]} 42. h5 {[%emt 0:00:05]} Kc4 {[%emt 0:00:05]} 43.
Kc2 {[%emt 0:00:02]} Kb4 {[%emt 0:00:02]} 44. Kd3 {[%emt 0:00:07]} Kb3 {
[%emt 0:00:02]} 45. Kd4 {[%emt 0:00:13]} c2 {[%emt 0:00:03]} 46. Ke5 {[%emt 0:
00:05]} c1=Q {[%emt 0:00:01]} 47. Kf5 {[%emt 0:00:04]} Qg1 {[%emt 0:00:06]} 48.
Kg6 {[%emt 0:00:07]} Qxg4 {[%emt 0:00:01]} 49. Kxg7 {[%emt 0:00:01]} Qxh5 {
[%emt 0:00:00]} 50. Kf6 {[%emt 0:00:01]} g4 {[%emt 0:00:02]} 51. Ke6 {[%emt 0:
00:04]} Qg5 {[%emt 0:00:01]} 52. Kf7 {[%emt 0:00:03]} Qf5+ {[%emt 0:00:05]} 53.
Kg7 {[%emt 0:00:02]} Qe6 {[%emt 0:00:03]} 54. Kh7 {[%emt 0:00:03]} Qf6 {
[%emt 0:00:01]} 55. Kg8 {[%emt 0:00:04]} Qe7 {[%emt 0:00:02]} 56. Kh8 {[%emt 0:
00:01]} h5 {[%emt 0:00:01]} 57. Kg8 {[%emt 0:00:01]} h4 {[%emt 0:00:01]} 58.
Kh8 {[%emt 0:00:01]} h3 {[%emt 0:00:00]} 59. Kg8 {[%emt 0:00:01]} h2 {[%emt 0:
00:01]} 60. Kh8 {[%emt 0:00:01]} g3 {[%emt 0:00:01]} 61. Kg8 {[%emt 0:00:01]}
g2 {[%emt 0:00:00]} 62. Kh8 {[%emt 0:00:01]} h1=R+ {[%emt 0:00:05]} 63. Kg8 {
[%emt 0:00:02]} g1=R# {[%emt 0:00:02] OnlyHungryKiwi won by checkmate} 0-1

[Event "Fast Chess"]
[Site "ChessKid.com"]
[Date "2020.04.23"]
[Round "2"]
[White "Halimi, Dorian"]
[Black "Kulcsar, Lisa"]
[Result "1-0"]
[ECO "C22"]
[WhiteElo "1116"]
[BlackElo "856"]
[Annotator "Entwicklungsfehler"]
[PlyCount "39"]
[EventDate "2020.??.??"]
[TimeControl "600"]
[WhiteClock "0:07:44"]
[BlackClock "0:08:41"]

1. e4 {[%emt 0:00:04]} e5 {[%emt 0:00:05]} 2. d4 {[%emt 0:00:08]} exd4 {
[%emt 0:00:05]} 3. Qxd4 {[%emt 0:00:01]} Be7 {[%emt 0:00:10]} 4. Bc4 {[%emt 0:
00:02]} Nh6 {[%emt 0:00:05]} 5. Qd5 {[%emt 0:00:02]} O-O {[%emt 0:00:04]} 6.
Nf3 {[%emt 0:00:05]} Na6 $4 {[%emt 0:00:07]} 7. Bxa6 {[%emt 0:00:06]} bxa6 {
[%emt 0:00:03]} 8. Qxa8 {[%emt 0:00:04]} Bc5 {[%emt 0:00:09]} 9. Nc3 {[%emt 0:
00:07]} Qh4 {[%emt 0:00:12]} 10. Nxh4 {[%emt 0:00:03]} Bb7 {[%emt 0:00:08]} 11.
Qxb7 {[%emt 0:00:04]} a5 {[%emt 0:00:05]} 12. Qxc7 {[%emt 0:00:01]} Bxf2+ {
[%emt 0:00:12]} 13. Kxf2 {[%emt 0:00:04]} Ng4+ {[%emt 0:00:05]} 14. Kf3 {
[%emt 0:00:06]} Nf6 {[%emt 0:00:11]} 15. Nf5 {[%emt 0:00:03]} Nxe4 {[%emt 0:00:
05]} 16. Nxe4 {[%emt 0:00:04]} Re8 {[%emt 0:00:07]} 17. Qxd7 {[%emt 0:00:03]}
Rf8 {[%emt 0:00:04]} 18. Ned6 {[%emt 0:00:07]} Ra8 {[%emt 0:00:08]} 19. Ne7+ {
[%emt 0:00:05]} Kh8 {[%emt 0:00:11]} 20. Nxf7# {[%emt 0:00:01]
FullMagentaEclipse won by checkmate} 1-0

[Event "Fast Chess"]
[Site "ChessKid.com"]
[Date "2020.04.23"]
[Round "3"]
[White "Li, Patrick"]
[Black "Halimi, Dorian"]
[Result "1-0"]
[ECO "C40"]
[WhiteElo "1105"]
[BlackElo "1108"]
[Annotator "S+L gegn T+B, Einschlag f7, Abzug"]
[PlyCount "87"]
[EventDate "2020.??.??"]
[TimeControl "600"]
[WhiteClock "0:05:18"]
[BlackClock "0:02:55"]

1. e4 {[%emt 0:00:49]} e5 {[%emt 0:00:05]} 2. Nf3 {[%emt 0:00:01]} Bd6 {
[%emt 0:00:05]} 3. Nc3 {[%emt 0:00:02]} Nf6 {[%emt 0:00:03]} 4. Bc4 {[%emt 0:
00:03]} O-O {[%emt 0:00:06]} 5. Ng5 {[%emt 0:00:08]} h6 {[%emt 0:00:22]} 6.
Nxf7 $2 {[%emt 0:00:08]} Nc6 $4 {[%emt 0:00:08]} 7. Nxd8+ {[%emt 0:00:11]} Kh8
{[%emt 0:00:10]} 8. Nf7+ {[%emt 0:00:07]} Kh7 {[%emt 0:00:05]} 9. Nxd6 {
[%emt 0:00:05]} cxd6 {[%emt 0:00:04]} 10. O-O {[%emt 0:00:22]} b6 {[%emt 0:00:
10]} 11. d3 {[%emt 0:00:13]} Bb7 {[%emt 0:00:07]} 12. Qf3 {[%emt 0:00:16]} Rae8
{[%emt 0:00:06]} 13. Bb5 {[%emt 0:00:13]} Nd4 {[%emt 0:00:04]} 14. Qh3 {
[%emt 0:00:11]} Rd8 {[%emt 0:00:09]} 15. Qg3 {[%emt 0:00:28]} Nxc2 {[%emt 0:00:
04]} 16. Rb1 {[%emt 0:00:04]} a6 {[%emt 0:00:10]} 17. Bc4 {[%emt 0:00:04]} b5 {
[%emt 0:00:04]} 18. Bb3 {[%emt 0:00:05]} Nd4 {[%emt 0:00:04]} 19. Be3 {[%emt 0:
00:13]} Ne2+ {[%emt 0:00:03]} 20. Nxe2 {[%emt 0:00:04]} Rc8 {[%emt 0:00:09]}
21. Rbc1 {[%emt 0:00:07]} Rce8 {[%emt 0:00:06]} 22. Qf3 {[%emt 0:00:18]} Nxe4 {
[%emt 0:00:14]} 23. Qh5 {[%emt 0:00:20]} a5 {[%emt 0:00:14]} 24. Bf7 {[%emt 0:
00:12]} Re7 {[%emt 0:00:07]} 25. Bg6+ {[%emt 0:00:15]} Kh8 {[%emt 0:00:06]} 26.
dxe4 {[%emt 0:00:07]} Bxe4 {[%emt 0:00:07]} 27. Bxe4 {[%emt 0:00:06]} b4 {
[%emt 0:00:08]} 28. Qg6 {[%emt 0:00:05]} Kg8 {[%emt 0:00:25]} 29. Qh7+ {
[%emt 0:00:08]} Kf7 {[%emt 0:00:01]} 30. Qg6+ {[%emt 0:00:08]} Kg8 {[%emt 0:00:
03]} 31. Qxd6 {[%emt 0:00:08]} Rfe8 {[%emt 0:00:12]} 32. Bg6 {[%emt 0:00:10]}
Re6 {[%emt 0:00:06]} 33. Qxd7 {[%emt 0:00:08]} R8e7 {[%emt 0:00:05]} 34. Qd8+ {
[%emt 0:00:08]} Re8 {[%emt 0:00:03]} 35. Bxe8 {[%emt 0:00:05]} Kf8 {[%emt 0:00:
03]} 36. Bd7+ {[%emt 0:00:15]} Kf7 {[%emt 0:00:05]} 37. Bxe6+ {[%emt 0:00:06]}
Kxe6 {[%emt 0:00:02]} 38. Rc6+ {[%emt 0:00:02]} Kf5 {[%emt 0:00:03]} 39. Qd3+ {
[%emt 0:00:03]} Kg4 {[%emt 0:00:03]} 40. h3+ {[%emt 0:00:03]} Kh4 {[%emt 0:00:
03]} 41. g3+ {[%emt 0:00:02]} Kh5 {[%emt 0:00:01]} 42. g4+ {[%emt 0:00:03]} Kh4
{[%emt 0:00:01]} 43. Bc5 {[%emt 0:00:10]} g5 {[%emt 0:00:06]} 44. Rxh6# {
[%emt 0:00:11] WideClassyQuiz won by checkmate} 1-0

[Event "Fast Chess"]
[Site "ChessKid.com"]
[Date "2020.04.23"]
[Round "1"]
[White "Georgiev, Maximilian"]
[Black "Horvath, Alexander"]
[Result "1-0"]
[ECO "C42"]
[WhiteElo "1458"]
[BlackElo "1326"]
[PlyCount "53"]
[EventDate "2020.??.??"]
[TimeControl "300+10"]
[WhiteClock "0:02:25"]
[BlackClock "0:03:18"]

1. e4 {[%emt 0:00:11]} e5 {[%emt 0:00:16]} 2. Nf3 {[%emt 0:00:10]} Nf6 {
[%emt 0:00:12]} 3. Nxe5 {[%emt 0:00:11]} Nxe4 {[%emt 0:00:13]} 4. Qe2 {[%emt 0:
00:11]} f6 {[%emt 0:00:25]} 5. Qxe4 {[%emt 0:00:11]} fxe5 {[%emt 0:00:11]} 6.
Qxe5+ {[%emt 0:00:10]} Qe7 {[%emt 0:00:12]} 7. Qxe7+ {[%emt 0:00:12]} Bxe7 {
[%emt 0:00:09]} 8. Be2 {[%emt 0:00:10]} Nc6 {[%emt 0:00:13]} 9. O-O {[%emt 0:
00:10]} d6 {[%emt 0:00:11]} 10. Nc3 {[%emt 0:00:10]} Be6 {[%emt 0:00:12]} 11.
d3 {[%emt 0:00:12]} O-O-O {[%emt 0:00:11]} 12. a3 {[%emt 0:00:12]} h5 {[%emt 0:
00:12]} 13. b4 {[%emt 0:00:12]} h4 {[%emt 0:00:12]} 14. b5 {[%emt 0:00:11]} Nb8
{[%emt 0:00:12]} 15. h3 {[%emt 0:00:12]} g5 {[%emt 0:00:14]} 16. Ne4 {[%emt 0:
00:18]} Rdg8 {[%emt 0:00:14]} 17. a4 {[%emt 0:00:15]} g4 {[%emt 0:00:13]} 18.
hxg4 {[%emt 0:00:12]} Bxg4 {[%emt 0:00:11]} 19. Bxg4+ {[%emt 0:00:13]} Rxg4 {
[%emt 0:00:11]} 20. Nd2 {[%emt 0:00:17]} h3 {[%emt 0:00:13]} 21. Re1 {[%emt 0:
00:24]} Rxg2+ {[%emt 0:00:29]} 22. Kh1 {[%emt 0:00:13]} Bd8 {[%emt 0:00:45]}
23. Nf3 {[%emt 0:00:17]} Rgg8 {[%emt 0:00:20]} 24. Rg1 {[%emt 0:00:16]} Rf8 {
[%emt 0:00:17]} 25. Bb2 {[%emt 0:00:19]} Rh7 {[%emt 0:00:19]} 26. Nd4 {[%emt 0:
00:26]} Rxf2 {[%emt 0:00:31]} 27. Ne6 {[%emt 0:00:18] TallSnazzyBall won -
game abandoned} 1-0

[Event "Fast Chess"]
[Site "ChessKid.com"]
[Date "2020.04.23"]
[Round "1"]
[White "Li, Patrick"]
[Black "Li, Tobias"]
[Result "0-1"]
[ECO "C55"]
[WhiteElo "1091"]
[BlackElo "1363"]
[PlyCount "52"]
[EventDate "2020.??.??"]
[TimeControl "300+10"]
[WhiteClock "0:03:39"]
[BlackClock "0:02:49"]

1. e4 {[%emt 0:00:21]} e5 {[%emt 0:00:11]} 2. Nf3 {[%emt 0:00:10]} Nc6 {
[%emt 0:00:16]} 3. Nc3 {[%emt 0:00:10]} Nf6 {[%emt 0:00:12]} 4. Bc4 {[%emt 0:
00:12]} Bc5 {[%emt 0:00:10]} 5. Ng5 {[%emt 0:00:13]} O-O {[%emt 0:00:11]} 6.
Nxf7 {[%emt 0:00:12]} Rxf7 {[%emt 0:00:10]} 7. Bxf7+ {[%emt 0:00:11]} Kxf7 {
[%emt 0:00:10]} 8. h3 {[%emt 0:00:11]} d6 {[%emt 0:00:13]} 9. h4 {[%emt 0:00:
13]} a6 {[%emt 0:00:15]} 10. d3 {[%emt 0:00:16]} Bb4 {[%emt 0:00:12]} 11. a3 {
[%emt 0:00:13]} Ba5 {[%emt 0:00:12]} 12. b4 {[%emt 0:00:17]} Bb6 {[%emt 0:00:
12]} 13. b5 {[%emt 0:00:16]} axb5 {[%emt 0:00:11]} 14. Nxb5 {[%emt 0:00:11]}
Ng4 {[%emt 0:00:11]} 15. d4 {[%emt 0:00:26]} Nxd4 {[%emt 0:00:26]} 16. Nxd4 {
[%emt 0:00:13]} Bxd4 {[%emt 0:00:10]} 17. Be3 {[%emt 0:00:17]} Nxe3 {[%emt 0:
00:13]} 18. fxe3 {[%emt 0:00:16]} Bxa1 {[%emt 0:00:13]} 19. Qxa1 {[%emt 0:00:
14]} Be6 {[%emt 0:00:18]} 20. Qb2 {[%emt 0:00:16]} Kg8 {[%emt 0:00:20]} 21.
Qxb7 {[%emt 0:00:12]} Rxa3 {[%emt 0:00:11]} 22. Qb5 {[%emt 0:00:27]} Ra1+ {
[%emt 0:00:15]} 23. Kf2 {[%emt 0:00:21]} Rxh1 {[%emt 0:00:09]} 24. Qc6 {
[%emt 0:00:17]} Qd7 {[%emt 0:00:14]} 25. Qa8+ {[%emt 0:00:16]} Qc8 {[%emt 0:00:
14]} 26. Qc6 {[%emt 0:00:13]} Rc1 {[%emt 0:00:15] OnlyHungryKiwi won by
resignation} 0-1

[Event "Fast Chess"]
[Site "ChessKid.com"]
[Date "2020.04.23"]
[Round "2"]
[White "Li, Tobias"]
[Black "Georgiev, Maximilian"]
[Result "0-1"]
[ECO "C55"]
[WhiteElo "1357"]
[BlackElo "1464"]
[PlyCount "54"]
[EventDate "2020.??.??"]
[TimeControl "300+10"]
[WhiteClock "0:03:54"]
[BlackClock "0:02:26"]

1. e4 {[%emt 0:00:10]} e5 {[%emt 0:00:10]} 2. Nf3 {[%emt 0:00:10]} Nc6 {
[%emt 0:00:10]} 3. Nc3 {[%emt 0:00:10]} Nf6 {[%emt 0:00:11]} 4. Bc4 {[%emt 0:
00:11]} h6 {[%emt 0:00:11]} 5. O-O {[%emt 0:00:14]} Nxe4 {[%emt 0:00:11]} 6.
Bxf7+ {[%emt 0:00:14]} Kxf7 {[%emt 0:00:14]} 7. Nxe4 {[%emt 0:00:10]} Be7 {
[%emt 0:00:12]} 8. Nc3 {[%emt 0:00:14]} Rf8 {[%emt 0:00:12]} 9. d3 {[%emt 0:00:
21]} Kg8 {[%emt 0:00:12]} 10. Re1 {[%emt 0:00:10]} d6 {[%emt 0:00:12]} 11. Nd5
{[%emt 0:00:20]} Bg4 {[%emt 0:00:16]} 12. h3 {[%emt 0:00:24]} Bxf3 {[%emt 0:00:
11]} 13. Nxe7+ {[%emt 0:00:23]} Qxe7 {[%emt 0:00:14]} 14. gxf3 {[%emt 0:00:11]}
Nd4 {[%emt 0:00:13]} 15. Be3 {[%emt 0:00:18]} Nxf3+ {[%emt 0:00:11]} 16. Kf1 {
[%emt 0:00:12]} Nxe1 {[%emt 0:00:11]} 17. Qxe1 {[%emt 0:00:12]} b6 {[%emt 0:00:
16]} 18. d4 {[%emt 0:00:21]} exd4 {[%emt 0:00:11]} 19. Bxd4 {[%emt 0:00:10]}
Qxe1+ {[%emt 0:00:10]} 20. Rxe1 {[%emt 0:00:11]} Rfe8 {[%emt 0:00:11]} 21. Rd1
{[%emt 0:00:21]} Re4 {[%emt 0:00:15]} 22. Bc3 {[%emt 0:00:13]} Rae8 {[%emt 0:
00:17]} 23. f3 {[%emt 0:00:16]} Rh4 {[%emt 0:00:14]} 24. Kg2 {[%emt 0:00:14]}
Re2+ {[%emt 0:00:14]} 25. Kg3 {[%emt 0:00:14]} Rc4 {[%emt 0:00:16]} 26. Rc1 {
[%emt 0:00:36]} h5 {[%emt 0:00:12]} 27. a3 {[%emt 0:00:27]} h4# {[%emt 0:00:11]
TallSnazzyBall won by checkmate} 0-1

[Event "Fast Chess"]
[Site "ChessKid.com"]
[Date "2020.04.23"]
[Round "3"]
[White "Georgiev, Maximilian"]
[Black "Li, Patrick"]
[Result "1-0"]
[ECO "C55"]
[WhiteElo "1466"]
[BlackElo "1089"]
[PlyCount "61"]
[EventDate "2020.??.??"]
[TimeControl "300+10"]
[WhiteClock "0:02:32"]
[BlackClock "0:02:57"]

1. e4 {[%emt 0:00:11]} e5 {[%emt 0:00:12]} 2. Nf3 {[%emt 0:00:10]} Nc6 {
[%emt 0:00:10]} 3. Bc4 {[%emt 0:00:10]} h6 {[%emt 0:00:12]} 4. O-O {[%emt 0:00:
10]} Nf6 {[%emt 0:00:16]} 5. Nc3 {[%emt 0:00:10]} Nxe4 {[%emt 0:00:13]} 6. Nxe4
{[%emt 0:00:11]} d5 {[%emt 0:00:12]} 7. Bxd5 {[%emt 0:00:13]} Qxd5 {[%emt 0:00:
14]} 8. Nc3 {[%emt 0:00:11]} Qe6 {[%emt 0:00:17]} 9. Re1 {[%emt 0:00:15]} Qg6 {
[%emt 0:00:13]} 10. Kh1 {[%emt 0:00:17]} Nb4 {[%emt 0:00:24]} 11. Nxe5 {
[%emt 0:00:16]} Qf5 {[%emt 0:00:23]} 12. Ng6+ {[%emt 0:00:21]} Kd8 {[%emt 0:00:
15]} 13. Nxh8 {[%emt 0:00:11]} Nxc2 {[%emt 0:00:12]} 14. Rb1 {[%emt 0:00:13]}
Nxe1 {[%emt 0:00:13]} 15. Qxe1 {[%emt 0:00:14]} Qh7 {[%emt 0:00:19]} 16. Nxf7+
{[%emt 0:00:15]} Kd7 {[%emt 0:00:13]} 17. Ne5+ {[%emt 0:00:14]} Kd8 {[%emt 0:
00:17]} 18. Ra1 {[%emt 0:00:16]} Bd6 {[%emt 0:00:15]} 19. Nf7+ {[%emt 0:00:13]}
Kd7 {[%emt 0:00:15]} 20. Nxd6 {[%emt 0:00:10]} cxd6 {[%emt 0:00:11]} 21. d4 {
[%emt 0:00:15]} Qg6 {[%emt 0:00:23]} 22. Nd5 {[%emt 0:00:14]} b6 {[%emt 0:00:
11]} 23. Qe7+ {[%emt 0:00:13]} Kc6 {[%emt 0:00:13]} 24. Nb4+ {[%emt 0:00:19]}
Kb5 {[%emt 0:00:16]} 25. Nd5 {[%emt 0:00:28]} Rb8 {[%emt 0:00:16]} 26. Qxa7 {
[%emt 0:00:14]} Bb7 {[%emt 0:00:16]} 27. Qxb8 {[%emt 0:00:16]} Bxd5 {[%emt 0:
00:12]} 28. f3 {[%emt 0:00:16]} Bc4 {[%emt 0:00:15]} 29. a4+ {[%emt 0:00:17]}
Kb4 {[%emt 0:00:15]} 30. Qxb6+ {[%emt 0:00:11]} Bb5 {[%emt 0:00:18]} 31. Qxb5#
{[%emt 0:00:10] TallSnazzyBall won by checkmate} 1-0